bitfinex/quotes_BTCUSD_20250219
["timestamp","ask_amount","ask_price","bid_price","bid_amount"]
[1739992466341,0.16042696,95938.0,95928.0,0.10250365]
[1739992466641,0.00407596,95938.0,95928.0,0.10250365]
[1739992466983,0.156342,95943.0,95928.0,0.10250365]
[1739992467183,0.0040823,95942.0,95928.0,0.10250365]
[1739992467403,0.156354,95936.0,95928.0,0.10350365]
[1739992467606,0.156357,95934.0,95928.0,0.10650365]
[1739992467810,0.208466,95939.0,95928.0,0.10650365]
[1739992467811,0.156359,95933.0,95928.0,0.10350365]
[1739992467990,0.00407917,95933.0,95928.0,0.10650365]
[1739992468208,0.156365,95929.0,95928.0,0.004]
[1739992468569,0.004076,95932.0,95903.0,0.00788]
[1739992468695,0.16045057,95929.0,95928.0,0.006]
[1739992468896,0.15,95943.0,95928.0,0.006]
[1739992468897,0.0573,95943.0,95928.0,0.006]
[1739992469122,0.00405054,95929.0,95928.0,0.006]
[1739992469326,0.15,95934.0,95928.0,0.006]
[1739992469530,0.00420045,95929.0,95928.0,0.006]
[1739992469841,0.00419409,95929.0,95928.0,0.002]
[1739992470652,0.00419409,95929.0,95914.0,0.156389]
[1739992470855,0.00419409,95929.0,95928.0,0.009]
[1739992471259,0.00419409,95929.0,95928.0,0.003]
[1739992471479,0.00419409,95929.0,95928.0,0.006]
[1739992471680,0.00419409,95929.0,95928.0,0.003]
[1739992471885,0.00419409,95929.0,95915.0,0.10250365]
[1739992472763,0.00419409,95929.0,95928.0,0.003]
[1739992472764,0.16055909,95929.0,95928.0,0.003]
[1739992473171,0.31055909,95929.0,95928.0,0.003]
[1739992473389,0.60716809,95929.0,95928.0,0.003]
[1739992473912,0.42673809,95929.0,95928.0,0.003]
[1739992474286,0.15,95926.0,95884.0,0.208584]
[1739992474612,0.208518,95915.0,95902.0,0.10250365]
[1739992474837,0.156398,95909.0,95902.0,0.10250365]
[1739992475045,0.00404431,95914.0,95902.0,0.10250365]
[1739992475251,0.15,95916.0,95902.0,0.10250365]
[1739992475468,0.156399,95908.0,95902.0,0.10250365]
[1739992475641,0.0573,95919.0,95902.0,0.10250365]
[1739992475846,0.00402206,95907.0,95902.0,0.10250365]
[1739992476049,0.156395,95911.0,95902.0,0.10550365]
[1739992476231,0.00401888,95906.0,95902.0,0.10550365]
[1739992476436,0.15,95917.0,95902.0,0.10550365]
[1739992476437,0.358515,95917.0,95902.0,0.10550365]
[1739992476635,0.0040157,95905.0,95902.0,0.10550365]
[1739992476954,0.15,95913.0,95902.0,0.10650365]
[1739992477153,0.156392,95913.0,95902.0,0.10650365]
[1739992477339,0.00403477,95912.0,95902.0,0.10350365]
[1739992477518,0.16042777,95912.0,95902.0,0.10750365]
[1739992477717,0.16042777,95912.0,95902.0,0.10650365]
[1739992477921,0.00403477,95912.0,95902.0,0.10650365]
[1739992478139,0.00403477,95912.0,95902.0,0.10950365]
[1739992478422,0.00403477,95912.0,95902.0,0.11650365]
[1739992478603,0.156374,95924.0,95902.0,0.11650365]
[1739992478809,0.156379,95921.0,95902.0,0.11650365]
[1739992479000,0.00402841,95911.0,95902.0,0.10950365]
[1739992479335,0.156378,95921.0,95902.0,0.10450365]
[1739992479476,0.15,95922.0,95908.0,0.156399]
[1739992479683,0.00404762,95920.0,95909.0,0.10250365]
[1739992479869,0.1604298,95921.0,95909.0,0.10250365]
[1739992480065,0.00404444,95919.0,95909.0,0.10250365]
[1739992480269,0.00405071,95920.0,95909.0,0.10250365]
[1739992480497,0.15,95927.0,95913.0,0.156391]
[1739992480666,0.00400152,95919.0,95913.0,0.10250365]
[1739992480871,0.156377,95922.0,95913.0,0.10250365]
[1739992481089,0.00399834,95918.0,95913.0,0.10250365]
[1739992481290,0.156375,95923.0,95913.0,0.10250365]
[1739992481468,0.00399213,95917.0,95913.0,0.10250365]
[1739992481679,0.208499,95924.0,95913.0,0.10250365]
[1739992481883,0.00398577,95916.0,95913.0,0.10250365]
[1739992482096,0.156378,95922.0,95913.0,0.10250365]
[1739992482276,0.00397939,95915.0,95913.0,0.10850365]
[1739992482507,0.156379,95921.0,95913.0,0.10850365]
[1739992482659,0.00013081,95929.0,95914.0,0.10250365]
[1739992482861,0.15649681,95929.0,95914.0,0.10250365]
[1739992483080,0.00404124,95928.0,95914.0,0.10250365]
[1739992483345,0.00013081,95929.0,95914.0,0.10250365]
[1739992483844,0.00404124,95928.0,95914.0,0.25889265]
[1739992484050,0.16040824,95928.0,95914.0,0.25889265]
[1739992484289,0.00404124,95928.0,95914.0,0.10250365]
[1739992484649,0.00404124,95928.0,95927.0,0.156368]
[1739992484849,0.00013081,95929.0,95928.0,0.156367]
[1739992485029,0.00013081,95929.0,95928.0,0.38927065]
[1739992485429,0.00013081,95929.0,95928.0,0.5538115]
[1739992485654,0.00013081,95929.0,95928.0,0.56169036]
[1739992485873,0.00013081,95929.0,95928.0,0.60284483]
[1739992486057,0.0004251,95960.0,95959.0,0.286716]
[1739992486254,0.0004251,95960.0,95959.0,0.39717965]
[1739992486460,0.00055587,95960.0,95959.0,0.40860877]
[1739992486771,0.00055587,95960.0,95959.0,0.40497468]
[1739992487380,0.00055587,95960.0,95959.0,0.38921965]
[1739992488124,0.00055587,95960.0,95959.0,0.19830365]
[1739992488525,0.00055587,95960.0,95959.0,0.19130365]
[1739992488765,0.00055587,95960.0,95959.0,0.20634365]
[1739992489006,0.00055587,95960.0,95959.0,0.3708845]
[1739992489421,0.00055587,95960.0,95959.0,0.3568845]
[1739992489621,0.00055587,95960.0,95959.0,0.3708845]
[1739992489911,0.00055587,95960.0,95959.0,0.34934365]
[1739992490155,0.00055587,95960.0,95959.0,0.19130365]
[1739992490424,0.00055587,95960.0,95959.0,0.19830365]
[1739992490946,0.00055587,95960.0,95959.0,0.3488445]
[1739992491141,0.00055587,95960.0,95959.0,0.3558445]
[1739992491375,0.014254,95986.0,95959.0,0.3558445]
[1739992491376,0.014254,95986.0,95968.0,0.32084285]
[1739992491576,0.014254,95986.0,95974.0,0.02]
[1739992491778,0.0004246,95987.0,95986.0,0.16454085]
[1739992491779,6e-07,95987.0,95986.0,0.16454085]
[1739992491978,0.0146782,96034.0,95999.0,0.306251]
[1739992492178,0.0146782,96034.0,95999.0,0.75027739]
[1739992492179,0.0004242,96034.0,95999.0,0.75027739]
[1739992492379,0.00543606,96000.0,95999.0,0.26683465]
[1739992493857,0.00586096,96000.0,95999.0,0.26683465]
[1739992494061,0.0004242,96034.0,96033.0,0.235096]
[1739992494307,0.04617,96092.0,96055.0,0.15616]
[1739992494308,0.01181365,96074.0,96055.0,0.15616]
[1739992494531,0.00055501,96056.0,96055.0,0.59210639]
[1739992494734,0.00055501,96056.0,96055.0,0.82100639]
[1739992495013,0.00055501,96056.0,96055.0,0.88950639]
[1739992495234,7e-05,96092.0,96079.0,0.156121]
[1739992495419,7e-05,96092.0,96079.0,0.26678465]
[1739992495809,0.01182682,96080.0,96079.0,0.26678465]
[1739992496018,2.5e-07,96080.0,96079.0,0.49548465]
[1739992496214,7e-05,96092.0,96091.0,0.156102]
[1739992496413,0.00020064,96092.0,96091.0,0.25860565]
[1739992496716,0.00020064,96092.0,96091.0,0.4725465]
[1739992496916,0.00020064,96092.0,96091.0,0.4925465]
[1739992497177,0.207957,96174.0,96097.0,0.01454085]
[1739992497366,0.01630184,96160.0,96149.0,0.156007]
[1739992497577,0.00043563,96152.0,96136.0,0.00828]
[1739992497747,0.00043563,96152.0,96151.0,0.156004]
[1739992497980,0.00043563,96152.0,96151.0,0.25850765]
[1739992498467,0.00043563,96152.0,96151.0,0.10250365]
[1739992498665,0.00043563,96152.0,96120.0,0.1971745]
[1739992498866,0.00043563,96152.0,96131.0,0.10250365]
[1739992499139,0.00043563,96152.0,96100.0,0.1971745]
[1739992499140,0.00364691,96151.0,96100.0,0.1971745]
[1739992499280,0.00364691,96151.0,96091.0,0.0494]
[1739992499281,0.00364691,96151.0,96130.0,0.1971745]
[1739992499463,0.00043563,96152.0,96150.0,0.156006]
[1739992499666,0.00043563,96152.0,96151.0,0.33344274]
[1739992499873,0.014254,96175.0,96174.0,0.155967]
[1739992500117,0.014254,96175.0,96174.0,0.164487]
[1739992500271,0.01438465,96175.0,96174.0,0.00852]
[1739992500502,0.01438465,96175.0,96174.0,0.26699065]
[1739992500707,0.01438465,96175.0,96174.0,0.25847065]
[1739992501039,0.01438465,96175.0,96174.0,0.29958069]
[1739992501424,0.01438465,96175.0,96174.0,0.25847065]
[1739992501622,0.01438465,96175.0,96174.0,0.10250365]
[1739992502754,0.01438465,96175.0,96150.0,0.00856]
[1739992502908,0.01438465,96175.0,96151.0,0.10250365]
[1739992503110,0.15,96173.0,96151.0,0.10250365]
[1739992503359,0.15,96173.0,96154.0,0.155999]
[1739992503527,0.00366043,96172.0,96155.0,0.43594639]
[1739992503730,0.02,96211.0,96155.0,0.43594639]
[1739992503731,7e-05,96222.0,96166.0,0.33344274]
[1739992503928,0.155921,96203.0,96167.0,0.10250365]
[1739992504165,0.15,96199.0,96167.0,0.10250365]
[1739992504412,0.15,96199.0,96173.0,0.10250365]
[1739992504612,0.155963,96177.0,96173.0,0.10250365]
[1739992504745,0.207902,96199.0,96146.0,0.0086]
[1739992504945,0.15,96197.0,96147.0,0.10250365]
[1739992505160,0.02,96194.0,96147.0,0.10250365]
[1739992505354,0.02120217,96206.0,96133.0,0.0462]
[1739992505355,0.15,96167.0,96133.0,0.0462]
[1739992505569,0.15,96156.0,96115.0,0.00864]
[1739992505756,0.15,96148.0,96116.0,0.10250365]
[1739992505958,0.358014,96148.0,96116.0,0.10250365]
[1739992506160,0.15603,96136.0,96116.0,0.10250365]
[1739992506367,0.01454085,96161.0,96116.0,0.10250365]
[1739992506619,0.02,96156.0,96116.0,0.10250365]
[1739992506837,0.01454085,96153.0,96116.0,0.10250365]
[1739992507040,0.156045,96126.0,96116.0,0.10293928]
[1739992507244,0.15,96139.0,96116.0,0.10293928]
[1739992507446,0.156049,96124.0,96116.0,0.10293928]
[1739992507621,0.15,96137.0,96116.0,0.10293928]
[1739992507826,0.15,96135.0,96116.0,0.00043563]
[1739992508055,0.156057,96119.0,96116.0,0.00043563]
[1739992508410,0.156058,96118.0,96116.0,0.00043563]
[1739992509775,0.15,96117.0,96116.0,0.00043563]
[1739992510763,0.25250365,96117.0,96116.0,0.00043563]
[1739992510958,0.15,96117.0,96116.0,0.00043563]
[1739992511169,0.156032,96134.0,96116.0,0.00043563]
[1739992511369,0.02,96148.0,96116.0,0.00043563]
[1739992511619,0.01630529,96141.0,96116.0,0.00043563]
[1739992511883,0.03142965,96155.0,96117.0,0.10250365]
[1739992512020,0.05309453,96216.0,96127.0,0.08323233]
[1739992512021,0.02,96177.0,96127.0,0.08323233]
[1739992512235,0.01630228,96163.0,96128.0,0.10250365]
[1739992512439,0.10250365,96176.0,96128.0,0.10250365]
[1739992512619,0.01629916,96163.0,96128.0,0.10250365]
[1739992512833,0.01454085,96155.0,96101.0,0.078]
[1739992513134,0.156042,96128.0,96101.0,0.078]
[1739992513285,0.227977,96165.0,96117.0,0.10250365]
[1739992513471,0.208015,96147.0,96117.0,0.10250365]
[1739992513665,0.208001,96154.0,96118.0,0.08323233]
[1739992514022,0.208032,96139.0,96119.0,0.10250365]
[1739992514196,0.156054,96121.0,96119.0,0.10250365]
[1739992514404,0.156054,96121.0,96101.0,0.078]
[1739992514405,0.156059,96117.0,96101.0,0.078]
[1739992514608,0.306059,96117.0,96085.0,0.0754]
[1739992514810,0.306059,96117.0,96088.0,0.23933733]
[1739992515010,0.306059,96117.0,96088.0,0.08323233]
[1739992515690,0.306059,96117.0,96085.0,0.0754]
[1739992515892,0.306059,96117.0,96086.0,0.08323233]
[1739992516736,0.306059,96117.0,96090.0,0.208136]
[1739992516945,0.306059,96117.0,96086.0,0.08323233]
[1739992517550,0.306059,96117.0,96116.0,0.00128343]
[1739992517726,0.40856265,96117.0,96116.0,0.00128343]
[1739992517927,0.8550253,96117.0,96116.0,0.00128343]
[1739992518200,0.7920973,96117.0,96116.0,0.00128343]
[1739992518515,0.16630665,96117.0,96116.0,0.00128343]
[1739992518798,0.32236565,96117.0,96116.0,0.00128343]
[1739992519379,0.42570565,96117.0,96116.0,0.00128343]
[1739992519577,0.32236565,96117.0,96116.0,0.00128343]
[1739992519895,0.15,96117.0,96116.0,0.00128343]
[1739992521340,0.30350081,96140.0,96116.0,0.00128343]
[1739992521664,0.156058,96118.0,96116.0,0.00128343]
[1739992521953,0.15,96122.0,96116.0,0.00128343]
[1739992522183,0.30350081,96150.0,96117.0,0.18573598]
[1739992522383,0.05258534,96206.0,96117.0,0.18573598]
[1739992522384,0.30350081,96160.0,96118.0,0.1298]
[1739992522514,0.01630221,96153.0,96119.0,0.10250365]
[1739992522713,0.30350081,96150.0,96119.0,0.10250365]
[1739992522920,0.15603,96135.0,96119.0,0.10250365]
[1739992523162,0.156034,96133.0,96119.0,0.10250365]
[1739992523348,0.30350081,96130.0,96119.0,0.10250365]
[1739992523506,0.156053,96122.0,96119.0,0.10250365]
[1739992523714,0.156049,96124.0,96119.0,0.10250365]
[1739992523958,0.156046,96125.0,96119.0,0.10250365]
[1739992524158,0.30350081,96130.0,96119.0,0.10250365]
[1739992524370,0.30350081,96140.0,96119.0,0.10250365]
[1739992524546,0.156047,96125.0,96119.0,0.10250365]
[1739992524728,0.156049,96124.0,96119.0,0.10250365]
[1739992525456,0.208055,96129.0,96119.0,0.10250365]
[1739992525648,0.15,96137.0,96119.0,0.10250365]
[1739992525855,0.30350081,96160.0,96121.0,0.08323233]
[1739992526057,0.30350081,96170.0,96131.0,0.08323233]
[1739992526296,0.30350081,96180.0,96141.0,0.08323233]
[1739992526593,0.15,96179.0,96142.0,0.10250365]
[1739992526798,0.207969,96168.0,96142.0,0.10250365]
[1739992526935,0.30350081,96170.0,96142.0,0.10250365]
[1739992527143,0.15,96158.0,96144.0,0.156015]
[1739992527348,0.207976,96165.0,96145.0,0.10250365]
[1739992527555,0.155994,96158.0,96145.0,0.10250365]
[1739992527763,0.155996,96157.0,96145.0,0.10250365]
[1739992528155,0.15599,96160.0,96145.0,0.10250365]
[1739992528324,0.0004239,96175.0,96152.0,0.08323233]
[1739992528560,0.0004239,96175.0,96153.0,0.10250365]
[1739992530235,0.1504239,96175.0,96153.0,0.10250365]
[1739992530444,0.15597,96172.0,96153.0,0.10250365]
[1739992530654,0.0004239,96175.0,96153.0,0.10250365]
[1739992531105,0.207967,96169.0,96153.0,0.10250365]
[1739992531501,0.30350081,96170.0,96153.0,0.10250365]
[1739992531717,0.155991,96160.0,96153.0,0.10250365]
[1739992531916,0.30350081,96170.0,96152.0,0.00013065]
[1739992532190,0.155993,96158.0,96152.0,0.00013065]
[1739992532590,0.15,96162.0,96152.0,0.00013065]
[1739992533006,0.15,96162.0,96153.0,0.10250365]
[1739992533212,0.0004239,96175.0,96155.0,0.08323233]
[1739992533421,0.0004239,96175.0,96156.0,0.10250365]
[1739992533830,0.30350081,96170.0,96155.0,0.08323233]
[1739992534011,0.30350081,96170.0,96152.0,0.00013065]
[1739992534205,0.15,96169.0,96152.0,0.00013065]
[1739992534713,0.15,96165.0,96152.0,0.00013065]
[1739992534911,0.155994,96158.0,96152.0,0.00013065]
[1739992535098,0.306001,96153.0,96152.0,0.00013065]
[1739992535302,0.15,96153.0,96152.0,0.00013065]
[1739992535456,0.415001,96153.0,96152.0,0.00013065]
[1739992535961,0.51750465,96153.0,96152.0,0.00013065]
[1739992536170,0.59577112,96153.0,96152.0,0.00013065]
[1739992536357,0.62568665,96153.0,96152.0,0.00013065]
[1739992536559,0.40850465,96153.0,96152.0,0.00013065]
[1739992536978,0.62246165,96153.0,96152.0,0.00013065]
[1739992537165,0.58318765,96153.0,96152.0,0.00013065]
[1739992537929,0.59948884,96153.0,96152.0,0.00013065]
[1739992538464,0.42480584,96153.0,96152.0,0.00013065]
[1739992539631,0.66760135,96153.0,96152.0,0.00013065]
[1739992539868,0.60707884,96153.0,96152.0,0.00013065]
[1739992540066,0.15,96131.0,96116.0,0.0008478]
[1739992540248,0.156059,96117.0,96116.0,0.0008478]
[1739992540444,0.15,96131.0,96116.0,0.0008478]
[1739992540644,0.306059,96117.0,96116.0,0.0008478]
[1739992540843,0.15,96116.0,96095.0,0.0777]
[1739992541073,0.01630438,96121.0,96096.0,0.18573598]
[1739992541305,0.51155181,96130.0,96106.0,0.08323233]
[1739992541445,0.156057,96119.0,96106.0,0.08323233]
[1739992541647,0.156057,96119.0,96096.0,0.18573598]
[1739992541648,0.15,96119.0,96096.0,0.08323233]
[1739992541869,0.30350081,96110.0,96097.0,0.10250365]
[1739992542070,0.156077,96107.0,96097.0,0.10250365]
[1739992542297,0.15,96118.0,96097.0,0.10250365]
[1739992542520,0.30350081,96110.0,96095.0,0.07813563]
[1739992542959,0.156092,96097.0,96095.0,0.07813563]
[1739992543315,0.156093,96096.0,96095.0,0.07813563]
[1739992544392,0.156093,96096.0,96095.0,0.00043563]
[1739992544996,0.358118,96100.0,96095.0,0.00043563]
[1739992545196,0.156093,96096.0,96095.0,0.00043563]
[1739992545605,0.01139752,96108.0,96095.0,0.00043563]
[1739992545606,0.02,96133.0,96095.0,0.00043563]
[1739992545805,0.30350081,96150.0,96106.0,0.0803]
[1739992546008,0.208012,96148.0,96115.0,0.156062]
[1739992546179,0.2126452,96150.0,96116.0,0.10250365]
[1739992546383,0.15,96129.0,96108.0,0.0483]
[1739992546582,0.30350081,96120.0,96109.0,0.10250365]
[1739992546807,0.30350081,96120.0,96108.0,0.0483]
[1739992547005,0.156072,96109.0,96108.0,0.0483]
[1739992547208,0.15,96112.0,96108.0,0.0483]
[1739992547585,0.15,96112.0,96094.0,0.0802]
[1739992547927,0.156074,96108.0,96096.0,0.10250365]
[1739992548329,0.156075,96108.0,96096.0,0.10250365]
[1739992548537,0.208075,96120.0,96096.0,0.10250365]
[1739992548668,0.15,96119.0,96096.0,0.10250365]
[1739992548870,0.156078,96106.0,96096.0,0.10250365]
[1739992549206,0.30350081,96120.0,96096.0,0.10250365]
[1739992549383,0.156092,96098.0,96096.0,0.10250365]
[1739992549583,0.15,96108.0,96094.0,0.0802]
[1739992549832,0.30350081,96110.0,96079.0,0.0804]
[1739992549833,0.156093,96096.0,96079.0,0.0804]
[1739992553333,0.208094,96111.0,96079.0,0.0804]
[1739992553582,0.15,96100.0,96079.0,0.0804]
[1739992553759,0.156093,96096.0,96095.0,0.00128363]
[1739992553937,0.156093,96097.0,96095.0,0.00128363]
[1739992554134,0.306084,96102.0,96095.0,0.00128363]
[1739992554339,0.156092,96097.0,96095.0,0.00128363]
[1739992554579,0.02,96127.0,96095.0,0.00128363]
[1739992554797,0.156093,96096.0,96095.0,0.00128363]
[1739992557027,0.306093,96096.0,96095.0,0.00128363]
[1739992559908,0.61315202,96096.0,96095.0,0.00128363]
[1739992560104,0.62946139,96096.0,96095.0,0.00128363]
[1739992560695,0.156137,96069.0,96068.0,0.0757]
[1739992561234,0.15,96078.0,96068.0,0.0757]
[1739992561444,0.30350081,96090.0,96068.0,0.0757]
[1739992561445,0.15,96087.0,96068.0,0.0757]
[1739992561587,0.15,96079.0,96062.0,0.0496]
[1739992561784,0.156138,96069.0,96063.0,0.10250365]
[1739992561983,0.156136,96070.0,96063.0,0.10250365]
[1739992562186,0.156137,96070.0,96063.0,0.10250365]
[1739992562504,0.208168,96076.0,96063.0,0.10250365]
[1739992562708,0.156145,96064.0,96063.0,0.10250365]
[1739992562911,0.156143,96066.0,96063.0,0.10250365]
[1739992563138,0.16122335,96079.0,96063.0,0.10250365]
[1739992563335,0.15,96077.0,96063.0,0.10250365]
[1739992563638,0.031293,96120.0,96063.0,0.10250365]
[1739992563639,0.02,96118.0,96075.0,0.08323233]
[1739992563837,0.01129186,96099.0,96076.0,0.17960365]
[1739992564036,0.02048883,96112.0,96085.0,0.156111]
[1739992564184,0.15,96094.0,96086.0,0.10250365]
[1739992564570,0.15,96094.0,96077.0,0.0491]
[1739992564737,0.15,96089.0,96077.0,0.0491]
[1739992564989,0.306123,96078.0,96077.0,0.0491]
[1739992565386,0.15,96077.0,96066.0,0.0771]
[1739992565585,0.156141,96067.0,96066.0,0.0771]
[1739992565963,0.156141,96067.0,96063.0,0.0491]
[1739992565964,0.156145,96064.0,96063.0,0.0491]
[1739992566164,0.156145,96064.0,96063.0,0.04923064]
[1739992566695,0.156145,96064.0,96063.0,0.00013064]
[1739992567013,0.3176262,96064.0,96063.0,0.00013064]
[1739992567172,0.306145,96064.0,96063.0,0.00013064]
[1739992567568,0.795916,96064.0,96063.0,0.00013064]
[1739992567746,1.295929,96064.0,96063.0,0.00013064]
[1739992567931,1.170254,96064.0,96063.0,0.00013064]
[1739992568135,1.27275765,96064.0,96063.0,0.00013064]
[1739992568553,1.36337576,96064.0,96063.0,0.00013064]
[1739992569235,0.68686326,96064.0,96063.0,0.00013064]
[1739992569434,0.156145,96064.0,96063.0,0.00013064]
[1739992571107,0.30350081,96090.0,96065.0,0.0475]
[1739992571311,0.343427,96112.0,96065.0,0.0475]
[1739992571312,0.208176,96073.0,96065.0,0.0475]
[1739992571510,0.15,96072.0,96065.0,0.0475]
[1739992571705,0.306142,96066.0,96065.0,0.0475]
[1739992572676,0.306145,96064.0,96063.0,0.00013064]
[1739992574690,0.208151,96085.0,96063.0,0.00013064]
[1739992574691,0.19707184,96080.0,96063.0,0.00013064]
[1739992574937,0.0208763,96087.0,96063.0,0.00013064]
[1739992575135,0.0208763,96087.0,96064.0,0.10250365]
[1739992575136,0.156115,96083.0,96064.0,0.10250365]
[1739992575312,0.0208763,96087.0,96066.0,0.156141]
[1739992575510,0.0208763,96087.0,96067.0,0.10250365]
[1739992575712,0.19707184,96080.0,96063.0,0.00013064]
[1739992575914,0.306145,96064.0,96063.0,0.00013064]
[1739992576115,0.804642,96064.0,96063.0,0.00013064]
[1739992576358,0.766243,96064.0,96063.0,0.00013064]
[1739992576530,0.738895,96064.0,96063.0,0.00013064]
[1739992576965,0.306145,96064.0,96063.0,0.00013064]
[1739992577169,0.15,96064.0,96063.0,0.00013064]
[1739992577578,0.02,96095.0,96063.0,0.00013064]
[1739992577579,0.52663672,96090.0,96072.0,0.05861779]
[1739992577901,0.306131,96073.0,96072.0,0.05861779]
[1739992578867,0.156145,96064.0,96063.0,0.00013064]
[1739992580159,0.208187,96068.0,96063.0,0.00013064]
[1739992580160,0.07512925,96089.0,96063.0,0.00097904]
[1739992580349,0.01631356,96087.0,96063.0,0.00097904]
[1739992580554,0.208151,96084.0,96063.0,0.00097904]
[1739992580846,0.208153,96083.0,96063.0,0.00097904]
[1739992580973,0.156141,96067.0,96063.0,0.00097904]
[1739992581373,0.156138,96069.0,96063.0,0.00097904]
[1739992581581,0.15,96085.0,96063.0,0.00097904]
[1739992581843,0.156141,96067.0,96063.0,0.00097904]
[1739992582227,0.208155,96082.0,96063.0,0.00097904]
[1739992582426,0.15,96081.0,96063.0,0.00097904]
[1739992582629,0.03685119,96087.0,96063.0,0.00097904]
[1739992582630,0.15,96085.0,96063.0,0.00097904]
[1739992582831,0.03685119,96087.0,96067.0,0.08323233]
[1739992582832,0.01631356,96087.0,96067.0,0.08323233]
[1739992583087,0.01148447,96101.0,96069.0,0.0499]
[1739992583286,0.01148447,96101.0,96078.0,0.0797]
[1739992583488,0.01148447,96101.0,96079.0,0.10250365]
[1739992583607,0.208133,96093.0,96079.0,0.10250365]
[1739992584022,0.156107,96088.0,96079.0,0.10250365]
[1739992584302,0.156121,96079.0,96078.0,0.0797]
[1739992585195,0.156121,96079.0,96069.0,0.0499]
[1739992585196,0.156136,96070.0,96069.0,0.0499]
[1739992586797,0.15,96089.0,96069.0,0.15240365]
[1739992586932,0.15,96089.0,96070.0,0.10250365]
[1739992587293,0.15,96087.0,96070.0,0.10250365]
[1739992587445,0.306109,96087.0,96070.0,0.10250365]
[1739992587854,0.15,96087.0,96070.0,0.10250365]
[1739992588260,0.01631171,96090.0,96070.0,0.10250365]
[1739992588474,0.15,96088.0,96070.0,0.10250365]
[1739992588673,0.156136,96070.0,96069.0,0.0499]
[1739992590776,0.156135,96071.0,96069.0,0.0499]
[1739992590973,0.156136,96070.0,96069.0,0.0499]
[1739992591603,0.156134,96071.0,96069.0,0.0499]
[1739992591946,0.156136,96070.0,96069.0,0.0499]
[1739992592862,0.1565603,96070.0,96069.0,0.0499]
[1739992593066,0.1565603,96070.0,96059.0,0.0797]
[1739992593067,0.156145,96064.0,96059.0,0.0797]
[1739992594088,0.156145,96064.0,96055.0,0.0483484]
[1739992595346,0.34467594,96064.0,96055.0,0.0008484]
[1739992596839,0.32245964,96064.0,96055.0,0.0008484]
[1739992597553,0.34298557,96064.0,96055.0,0.0008484]
[1739992600983,0.49158057,96064.0,96055.0,0.0008484]
[1739992603931,0.47526593,96064.0,96055.0,0.0008484]
[1739992604338,0.15,96053.0,96041.0,0.0475]
[1739992604512,0.306181,96042.0,96041.0,0.04763081]
[1739992605953,0.306181,96042.0,96041.0,0.00013081]
[1739992606756,0.3174979,96042.0,96041.0,0.00013081]
[1739992606991,0.35504358,96042.0,96041.0,0.00013081]
[1739992607470,0.43219544,96042.0,96041.0,0.00013081]
[1739992608441,0.35504358,96042.0,96041.0,0.00013081]
[1739992609807,0.35504358,96042.0,96019.0,0.083449]
[1739992609808,0.156215,96021.0,96019.0,0.083449]
[1739992611415,0.15,96025.0,96019.0,0.083449]
[1739992611832,0.156214,96022.0,96019.0,0.083449]
[1739992612082,0.156215,96021.0,96019.0,0.083449]
[1739992615449,0.156215,96021.0,96019.0,0.000849]
[1739992615637,0.2493204,96021.0,96019.0,0.000849]
[1739992616083,0.156215,96021.0,96019.0,0.000849]
[1739992616283,0.38462311,96021.0,96019.0,0.000849]
[1739992617127,0.40094464,96021.0,96019.0,0.000849]
[1739992618510,0.75749964,96021.0,96019.0,0.000849]
[1739992619108,0.156241,96005.0,96004.0,0.048]
[1739992619410,0.303821,96005.0,96004.0,0.048]
[1739992619636,0.28184,96005.0,96004.0,0.048]
[1739992620487,0.40329923,96005.0,96004.0,0.048]
[1739992620690,0.156248,96001.0,96000.0,0.0822484]
[1739992621095,0.1561602,96001.0,96000.0,0.0822484]
[1739992621514,0.02145693,96005.0,96000.0,0.0822484]
[1739992621721,0.00013023,96005.0,96000.0,0.0822484]
[1739992621957,0.00013023,96005.0,96004.0,0.204343]
[1739992622167,0.00013023,96005.0,96004.0,0.38634665]
[1739992622576,0.00013023,96005.0,96004.0,0.23010365]
[1739992623215,0.02126825,96031.0,96004.0,0.38010365]
[1739992623430,0.13149229,96050.0,96034.0,0.1232]
[1739992623637,0.13149229,96050.0,96035.0,0.10250365]
[1739992623849,0.156193,96035.0,96034.0,0.1232]
[1739992624023,0.306193,96035.0,96034.0,0.1232]
[1739992624179,0.15,96035.0,96034.0,0.0476]
[1739992625255,0.01117109,96042.0,96034.0,0.0476]
[1739992626017,0.156191,96037.0,96034.0,0.0476]
[1739992626218,0.156191,96036.0,96034.0,0.0476]
[1739992626663,0.01117109,96042.0,96034.0,0.0476]
[1739992626869,0.156192,96036.0,96034.0,0.0476]
[1739992627599,0.156192,96036.0,96026.0,0.0756]
[1739992627600,0.156206,96027.0,96026.0,0.0756]
[1739992628571,0.40544218,96036.0,96026.0,0.0756]
[1739992628572,0.208257,96035.0,96026.0,0.0756]
[1739992628894,0.156196,96033.0,96026.0,0.0756]
[1739992629071,0.02035644,96044.0,96027.0,0.10250365]
[1739992629251,0.156193,96035.0,96027.0,0.10250365]
[1739992629457,0.01159689,96042.0,96027.0,0.10250365]
[1739992629798,0.156196,96033.0,96027.0,0.10250365]
[1739992629934,0.16159689,96042.0,96027.0,0.10250365]
[1739992630135,0.156202,96030.0,96027.0,0.10250365]
[1739992630360,0.156196,96034.0,96026.0,0.0756]
[1739992630578,0.01159689,96042.0,96029.0,0.08323233]
[1739992630732,0.00055644,96042.0,96030.0,0.10250365]
[1739992631773,0.15673744,96042.0,96030.0,0.10250365]
[1739992632552,0.22452586,96058.0,96030.0,0.10250365]
[1739992632730,0.156171,96049.0,96030.0,0.10263429]
[1739992632965,0.156172,96048.0,96034.0,0.156193]
[1739992633164,0.208223,96051.0,96035.0,0.25869565]
[1739992633378,0.2086396,96055.0,96036.0,0.156191]
[1739992633582,0.156173,96047.0,96037.0,0.10250365]
[1739992633982,0.156175,96047.0,96037.0,0.10250365]
[1739992634188,0.15617,96050.0,96037.0,0.10250365]
[1739992634389,0.01145053,96050.0,96039.0,0.08323233]
[1739992634591,0.0004256,96055.0,96040.0,0.10250365]
[1739992635005,0.0004256,96055.0,96044.0,0.156177]
[1739992635213,0.0004256,96055.0,96039.0,0.08323233]
[1739992635214,0.0004256,96055.0,96045.0,0.31073765]
[1739992635417,0.0004256,96055.0,96045.0,0.10250365]
[1739992635629,0.01151013,96055.0,96045.0,0.10250365]